bitfinex/quotes_SOLUSD_20250822
["timestamp","ask_amount","ask_price","bid_price","bid_amount"]
[1755831792012,0.06,182.69,182.68,0.65]
[1755831792207,4.93169951,182.69,182.68,0.65]
[1755831793536,4.93169951,182.69,182.67,26.0]
[1755831793694,4.87169951,182.68,182.64,42.463164]
[1755831793900,4.87169951,182.66,182.64,42.463164]
[1755831794237,4.87169951,182.66,182.65,0.65]
[1755831794404,42.4,182.69,182.65,0.65]
[1755831794602,4.87169951,182.66,182.65,0.65]
[1755831798629,4.87169951,182.68,182.67,26.0]
[1755831799510,4.87169951,182.68,182.67,26.67]
[1755831799920,0.06,182.69,182.67,32.1443513]
[1755831800112,4.93169951,182.69,182.68,0.67]
[1755831801300,0.06,182.69,182.68,0.67]
[1755831801504,4.93169951,182.69,182.68,0.67]
[1755831803222,0.06,182.69,182.68,0.67]
[1755831803417,4.93169951,182.69,182.68,0.67]
[1755831805208,0.06,182.69,182.68,0.67]
[1755831805435,4.93169951,182.69,182.68,0.67]
[1755831809320,0.06,182.69,182.68,0.67]
[1755831809541,4.93169951,182.69,182.68,0.67]
[1755831811316,0.06,182.69,182.68,0.67]
[1755831811529,4.93169951,182.69,182.68,0.67]
[1755831813058,0.06,182.69,182.68,0.67]
[1755831813559,4.93169951,182.69,182.67,43.131357]
[1755831813769,4.87169951,182.68,182.67,42.461357]
[1755831814065,0.06,182.69,182.67,43.131357]
[1755831814251,4.87169951,182.68,182.67,42.461357]
[1755831814448,0.06,182.69,182.67,47.93558052]
[1755831814749,4.87169951,182.68,182.67,47.93558052]
[1755831815462,0.06,182.69,182.67,48.60558052]
[1755831815671,4.93169951,182.69,182.67,48.60558052]
[1755831815848,4.87169951,182.68,182.67,32.14422352]
[1755831816173,0.06,182.69,182.67,39.95079552]
[1755831816459,0.06,182.69,182.68,0.67]
[1755831817156,0.06,182.73,182.69,13.59559401]
[1755831817453,4.78683355,182.93,182.8,26.0]
[1755831817635,4.87169951,182.82,182.81,26.0]
[1755831817839,4.87169951,182.82,182.81,30.08982934]
[1755831818168,4.87169951,182.82,182.81,34.96152934]
[1755831818340,0.78,182.83,182.81,34.96152934]
[1755831818341,0.06,182.83,182.81,40.50322885]
[1755831818530,0.06,182.83,182.82,4.75982934]
[1755831819027,0.06,182.83,182.82,66.02712286]
[1755831819226,0.06,182.83,182.82,66.311446]
[1755831819427,0.06,182.83,182.82,71.78130706]
[1755831820647,0.06,182.83,182.82,66.90960755]
[1755831820828,0.06,182.83,182.82,71.78130706]
[1755831821031,0.06,182.87,182.86,39.59559401]
[1755831821227,0.06,182.87,182.86,48.55712286]
[1755831821446,0.06,182.87,182.86,54.69578741]
[1755831822832,0.06,182.87,182.86,49.8240879]
[1755831823067,0.06,182.87,182.86,54.69578741]
[1755831824662,0.06,182.87,182.86,54.66036982]
[1755831824859,0.06,182.87,182.86,49.11867031]
[1755831825027,0.06,182.87,182.86,49.19170527]
[1755831825232,0.78,182.87,182.86,30.05441175]
[1755831826459,5.65169951,182.87,182.86,30.05441175]
[1755831826657,5.65169951,182.87,182.83,68.74]
[1755831826861,5.53169951,182.86,182.85,26.0]
[1755831827042,4.93169951,182.87,182.85,30.0515539]
[1755831827242,0.06,182.87,182.86,4.0520919]
[1755831827685,0.06,182.87,182.86,4.05108053]
[1755831828279,0.06,182.87,182.86,6.24364253]
[1755831829147,4.93169951,182.87,182.86,6.24364253]
[1755831829350,0.72,182.87,182.86,6.24364253]
[1755831829679,5.59169951,182.87,182.86,6.24364253]
[1755831830459,0.06,182.87,182.86,6.24364253]
[1755831830679,4.93169951,182.87,182.86,6.24364253]
[1755831831573,0.06,182.87,182.86,6.91364253]
[1755831831779,0.06,182.87,182.86,11.78534204]
[1755831832079,0.06,182.87,182.86,6.91364253]
[1755831832863,0.06,182.87,182.86,12.38230708]
[1755831833881,0.06,182.87,182.86,12.37473316]
[1755831834287,0.06,182.87,182.86,25.97032717]
[1755831834584,0.06,182.87,182.86,25.9692806]
[1755831835680,0.06,182.87,182.86,12.37368659]
[1755831835893,0.06,182.87,182.86,6.23502204]
[1755831836068,0.06,182.87,182.86,48.91502204]
[1755831836663,0.72,182.87,182.86,48.91502204]
[1755831836983,0.72,182.87,182.86,6.23404909]
[1755831837185,5.59169951,182.87,182.86,2.192562]
[1755831837489,0.06,182.87,182.86,6.23449746]
[1755831839995,4.93169951,182.87,182.86,6.23449746]
[1755831840280,5.59169951,182.87,182.86,2.192562]
[1755831840689,0.72,182.87,182.86,2.192562]
[1755831840865,4.93169951,182.87,182.86,2.192562]
[1755831841064,0.06,182.87,182.86,2.192562]
[1755831843492,0.06,182.87,182.86,12.37515015]
[1755831843789,0.06,182.87,182.86,99.48244367]
[1755831844600,0.06,182.87,182.86,73.62460524]
[1755831844767,0.06,182.87,182.86,73.76676681]
[1755831845162,0.02372001,182.87,182.86,73.76676681]
[1755831846798,0.06,182.88,182.87,13.87991715]
[1755831846999,1e-08,182.89,182.87,28.33723977]
[1755831847162,1e-08,182.9,182.89,13.87991715]
[1755831847357,0.06,182.99,182.92,39.87991715]
[1755831847565,0.72,182.99,182.96,39.87991715]
[1755831847761,0.72,182.99,182.96,86.60384075]
[1755831847986,0.72,182.99,182.96,87.27384075]
[1755831848191,0.72,182.99,182.96,86.31951761]
[1755831848510,0.72,182.99,182.96,86.60384075]
[1755831849007,0.72,182.97,182.96,72.7439236]
[1755831849389,0.72,182.97,182.96,30.0439236]
[1755831849390,5.59169951,182.97,182.96,30.0439236]
[1755831849585,5.59169951,182.97,182.96,26.0]
[1755831850303,5.59169951,182.97,182.96,30.0421431]
[1755831851011,5.59169951,182.97,182.96,30.04222131]
[1755831851213,5.59169951,182.97,182.96,5.5917]
[1755831851390,5.59169951,182.97,182.93,42.68]
[1755831851590,0.66,182.96,182.94,4.04377643]
[1755831851781,0.06,182.97,182.94,5.591699]
[1755831851787,0.66,182.95,182.94,5.591699]
[1755831852210,0.66,182.95,182.91,68.68]
[1755831852406,0.66,182.94,182.93,28.19184]
[1755831852588,0.66,182.94,182.93,32.23715719]
[1755831852786,5.53169951,182.94,182.93,32.23715719]
[1755831853713,0.66,182.94,182.93,32.23715719]
[1755831853892,5.53169951,182.94,182.93,32.23715719]
[1755831854089,5.53169951,182.94,182.93,4.04531719]
[1755831854292,5.53169951,182.94,182.92,9.57701619]
[1755831854492,0.06,182.94,182.93,4.04531719]
[1755831855014,0.72,182.94,182.93,4.04531719]
[1755831855623,5.59169951,182.94,182.93,4.04531719]
[1755831855914,5.59169951,182.94,182.93,4.05215418]
[1755831859410,4.93169951,182.94,182.93,4.05215418]
[1755831860121,0.06,182.94,182.93,30.76215418]
[1755831860420,4.93169951,182.94,182.93,30.05215418]
[1755831860587,4.93169951,182.94,182.93,26.0]
[1755831860788,4.93169951,182.94,182.93,30.07370123]
[1755831861085,4.93169951,182.94,182.93,30.07366541]
[1755831861695,0.06,182.94,182.93,30.07366541]
[1755831862219,4.93169951,182.94,182.93,26.0]
[1755831863507,0.06,182.94,182.93,26.0]
[1755831863709,4.93169951,182.94,182.93,26.0]
[1755831866705,0.06,182.94,182.93,26.0]
[1755831866907,4.93169951,182.94,182.93,26.0]
[1755831867327,4.93169951,182.94,182.93,30.931699]
[1755831869508,4.93169951,182.94,182.93,26.0]
[1755831869710,4.93169951,182.94,182.93,30.9317]
[1755831871327,5.62169951,182.94,182.93,26.0]
[1755831871628,4.93169951,182.94,182.93,26.0]
[1755831873324,4.93169951,182.94,182.93,30.931699]
[1755831874102,0.06,182.94,182.93,31.641699]
[1755831874321,4.93169951,182.94,182.93,31.641699]
[1755831875226,0.06,182.94,182.93,31.641699]
[1755831875408,4.93169951,182.94,182.93,31.641699]
[1755831876131,4.93169951,182.94,182.93,30.931699]
[1755831878542,5.62169951,182.94,182.91,0.03]
[1755831878834,4.87169951,182.92,182.91,26.03]
[1755831880340,4.87169951,182.92,182.91,26.74]
[1755831881457,0.06,182.94,182.91,26.74]
[1755831881661,0.06,182.94,182.92,0.71]
[1755831882133,4.93169951,182.94,182.92,0.71]
[1755831882329,4.93169951,182.94,182.93,7.65829191]
[1755831882730,0.06,182.94,182.93,8.36829191]
[1755831882933,0.06,182.94,182.93,22.24820906]
[1755831884121,0.06,182.94,182.93,64.74820906]
[1755831885344,0.06,182.94,182.93,69.61990857]
[1755831885546,0.06,182.94,182.93,64.74820906]
[1755831885742,0.06,182.94,182.93,69.61990857]
[1755831886846,0.06,182.94,182.93,16.07163715]
[1755831887047,0.06,182.94,182.93,47.53820906]
[1755831887227,0.06,182.94,182.93,47.56820906]
[1755831887648,0.06,182.94,182.93,28.22172]
[1755831887845,5.64169951,182.94,182.93,28.22172]
[1755831888145,4.93169951,182.94,182.93,28.22172]
[1755831888728,5.64169951,182.94,182.93,28.22172]
[1755831888933,5.64169951,182.94,182.93,26.03]
[1755831889547,4.93169951,182.94,182.93,26.03]
[1755831892157,0.06,182.94,182.93,45.37648906]
[1755831892351,0.06,182.94,182.93,46.02648906]
[1755831892657,0.06,182.94,182.93,50.95818806]
[1755831896648,0.06,182.94,182.93,30.961699]
[1755831896835,5.64169951,182.94,182.93,30.961699]
[1755831897153,0.06,182.94,182.93,30.961699]
[1755831899460,4.93169951,182.94,182.93,30.961699]
[1755831899634,0.06,182.94,182.93,26.03]
[1755831899825,5.64169951,182.94,182.93,26.03]
[1755831900031,4.93169951,182.94,182.93,0.03]
[1755831900225,0.06,182.94,182.93,0.68]
[1755831900445,0.06,182.94,182.93,6.14657191]
[1755831901176,0.06,182.94,182.93,11.07827191]
[1755831901345,0.06,182.94,182.93,4.9617]
[1755831901872,0.77,182.94,182.93,30.9617]
[1755831902071,5.64169951,182.94,182.93,26.03]
[1755831902634,5.64169951,182.94,182.93,0.03]
[1755831904784,0.77,182.94,182.93,0.03]
[1755831904936,5.64169951,182.94,182.93,0.03]
[1755831907356,0.77,182.94,182.93,0.03]
[1755831907543,5.64169951,182.94,182.93,0.03]
[1755831909688,4.93169951,182.94,182.93,0.03]
[1755831910088,5.64169951,182.94,182.93,0.03]
[1755831912573,4.93169951,182.94,182.93,0.03]
[1755831912819,48.04169951,182.94,182.93,0.03]
[1755831922382,4.87169951,182.92,182.91,0.03]
[1755831922583,47.21169951,182.92,182.91,0.03]
[1755831922900,47.87169951,182.92,182.91,0.03]
[1755831931109,47.21169951,182.92,182.91,0.03]
[1755831931584,47.87169951,182.92,182.91,0.03]
[1755831931785,47.21169951,182.92,182.91,0.03]
[1755831931984,47.87169951,182.92,182.91,0.03]
[1755831933589,47.81169951,182.92,182.91,0.03]
[1755831934596,47.81169951,182.92,182.89,0.03]
[1755831934597,48.09602265,182.92,182.89,0.03]
[1755831934806,4.87169951,182.9,182.89,0.03]
[1755831935112,52.02339902,182.9,182.87,0.03]
[1755831935285,9.74339902,182.88,182.87,0.03]
[1755831935485,52.04339902,182.88,182.87,0.03]
[1755831935686,52.70339902,182.88,182.87,0.03]
[1755831938796,52.04339902,182.88,182.87,0.03]
[1755831940588,47.17169951,182.88,182.87,0.72]
[1755831942830,52.04339902,182.88,182.87,0.03]
[1755831944512,52.04339902,182.88,182.87,0.72]
[1755831944818,52.04339902,182.88,182.87,0.03]
[1755831949196,47.17169951,182.88,182.87,0.74]
[1755831950618,47.17169951,182.88,182.87,0.03]
[1755831951002,52.04339902,182.88,182.87,0.03]
[1755831951901,52.72339902,182.88,182.87,0.03]
[1755831953128,10.42339902,182.88,182.87,0.03]
[1755831953428,52.72339902,182.88,182.87,0.03]
[1755831953930,10.42339902,182.88,182.87,0.03]
[1755831954419,52.72339902,182.88,182.87,0.03]
[1755831955235,10.42339902,182.88,182.87,0.03]
[1755831955435,9.74339902,182.88,182.87,0.03]
[1755831955606,52.04339902,182.88,182.87,0.03]
[1755831956998,52.04339902,182.88,182.87,0.74]
[1755831956999,4.87169951,182.88,182.87,0.74]
[1755831957198,47.17169951,182.88,182.87,3.022561]
[1755831959206,4.87169951,182.88,182.87,3.022561]
[1755831959610,47.17169951,182.88,182.87,3.022561]
[1755831960225,4.87169951,182.88,182.87,3.022561]
[1755831960419,47.17169951,182.88,182.87,3.022561]
[1755831961632,26.06,182.93,182.87,3.022561]
[1755831961633,4.87169951,182.9,182.87,3.022561]
[1755831961821,4.87169951,182.9,182.88,0.71]
[1755831962410,4.87169951,182.9,182.89,5.468436]
[1755831962609,4.87169951,182.9,182.89,6.178436]
[1755831963715,42.3,182.91,182.89,6.178436]
[1755831963909,132.46,182.93,182.9,0.71]
[1755831963910,0.06,182.93,182.9,0.71]
[1755831964118,0.06,182.93,182.92,26.0]
[1755831964323,0.06,182.93,182.92,26.71]
[1755831964644,4.93169951,182.95,182.92,26.71]
[1755831964645,0.06,182.95,182.93,5.46657191]
[1755831964931,0.06,182.95,182.94,0.71]
[1755831966420,0.06,182.95,182.94,5.58169951]
[1755831966725,0.06,182.95,182.94,11.0479726]
[1755831966942,0.06,182.95,182.94,5.58169951]
[1755831967141,0.06,182.95,182.94,0.71]
[1755831968628,0.06,182.95,182.94,6.17627309]
[1755831970135,0.06,182.95,182.94,11.0479726]
[1755831970321,0.06,182.95,182.94,6.17627309]
[1755831970716,0.06,182.95,182.94,5.58169951]
[1755831970917,0.06,182.95,182.94,11.0479726]
[1755831971134,0.06,182.95,182.94,6.17627309]
[1755831971418,0.06,182.95,182.94,5.58169951]
[1755831973020,0.06,182.95,182.94,0.71]
[1755831973222,0.06,182.95,182.94,5.58169951]
[1755831974526,0.06,182.95,182.94,7.77318051]
[1755831980037,0.06,182.95,182.94,13.2394536]
[1755831981454,0.06,182.95,182.94,27.11937075]
[1755831983124,0.06,182.95,182.94,69.37937075]
[1755831984829,1e-08,182.95,182.94,74.25107026]
[1755831985131,1e-08,182.96,182.95,13.87991715]
[1755831985341,0.06,182.99,182.95,13.87991715]
[1755831985342,0.06,182.99,182.98,39.87991715]
[1755831985652,0.71,183.13,183.06,39.59559401]
[1755831985830,0.71,183.13,183.11,4.87169951]
[1755831986031,4.87169951,183.16,183.11,4.87169951]
[1755831986254,0.71,183.15,183.11,4.87169951]
[1755831986442,0.71,183.15,183.11,10.43339951]
[1755831986653,0.71,183.15,183.11,9.74339951]
[1755831987235,0.71,183.18,183.11,24.31331666]
[1755831987442,0.71,183.18,183.11,92.57331666]
[1755831987751,0.71,183.18,183.11,98.03451484]
[1755831988345,0.71,183.17,183.11,92.57331666]
[1755831989132,0.71,183.17,183.11,98.03451484]
[1755831990734,0.71,183.19,183.11,98.03451484]
[1755831990936,4.87169951,183.2,183.11,98.03451484]
[1755831991258,0.71,183.18,183.11,98.03451484]
[1755831991462,0.71,183.18,183.11,72.03451484]
[1755831991831,132.4,183.23,183.11,72.03451484]
[1755831992136,0.71,183.18,183.11,72.03451484]
[1755831993268,0.71,183.19,183.11,72.03451484]
[1755831993566,0.06,183.16,183.11,76.40582778]
[1755831994058,0.06,183.16,183.11,34.14582778]
[1755831994255,0.06,183.16,183.11,76.38582778]
[1755831994843,0.06,183.16,183.11,72.01451484]
[1755831996162,0.06,183.16,183.11,76.29627249]
[1755831997034,0.06,183.16,183.11,34.05627249]
[1755831997234,0.06,183.16,183.11,76.27627249]
[1755831997845,0.06,183.16,183.11,71.99451484]
[1755831998861,0.06,183.16,183.11,76.30543592]
[1755831999040,0.06,183.16,183.11,71.99451484]
[1755832002163,0.77,183.16,183.11,71.99451484]
[1755832003468,0.06,183.16,183.15,39.59559401]
[1755832003672,0.06,183.16,183.15,82.09991715]
[1755832003844,0.06,183.16,183.15,92.53331617]
[1755832004247,0.06,183.16,183.15,108.94514417]
[1755832004856,0.06,183.16,183.15,114.40514963]
[1755832006247,132.4,183.3,183.21,0.14216157]
[1755832006454,0.71,183.25,183.24,26.0]
[1755832006659,0.71,183.25,183.24,82.07991715]
[1755832006970,0.71,183.25,183.24,103.94457987]
[1755832007271,0.65,183.25,183.24,103.94457987]
[1755832007664,0.65,183.27,183.25,13.87991715]
[1755832007980,0.65,183.27,183.26,47.07169951]
[1755832008178,0.65,183.27,183.26,60.95161666]
[1755832010383,0.65,183.27,183.26,56.07991715]
[1755832011965,0.65,183.27,183.26,42.2]
[1755832013878,0.65,183.27,183.26,47.1317]
[1755832015084,0.65,183.27,183.26,47.1117]
[1755832015262,0.65,183.27,183.26,52.50394582]
[1755832015458,0.65,183.27,183.26,10.32394582]
[1755832015674,0.65,183.27,183.26,52.50394582]
[1755832015867,4.93169951,183.29,183.26,52.50394582]
[1755832016180,0.71,183.29,183.26,52.50394582]
[1755832016379,0.65,183.28,183.26,47.57224582]
[1755832016579,0.65,183.28,183.27,16.406442]
[1755832017906,0.65,183.28,183.27,58.586442]
[1755832021390,0.06,183.29,183.27,58.586442]
[1755832021770,0.06,183.29,183.27,42.18]
[1755832021985,0.06,183.29,183.27,78.50812393]
[1755832022189,0.06,183.29,183.28,24.37331566]
[1755832022367,0.06,183.29,183.28,25.07331566]
[1755832023095,0.06,183.29,183.28,34.95203069]
[1755832024089,0.06,183.29,183.28,30.52944835]
[1755832025291,0.06,183.29,183.28,25.65774884]
[1755832025464,0.06,183.29,183.28,30.52944835]
[1755832027480,0.06,183.29,183.28,25.65774884]
[1755832027669,0.06,183.29,183.28,30.52944835]
[1755832027864,0.06,183.29,183.28,25.65774884]
[1755832028095,0.06,183.29,183.28,30.52944835]
[1755832028495,0.71,183.29,183.28,19.50161615]
[1755832028681,0.71,183.29,183.28,66.26899252]
[1755832028991,0.06,183.29,183.28,66.41115409]
[1755832029489,0.06,183.29,183.28,72.00944835]
[1755832029674,0.06,183.29,183.28,66.55331566]
[1755832029873,0.06,183.29,183.28,61.68161615]
[1755832030067,0.06,183.29,183.28,72.00944835]
[1755832030874,0.06,183.29,183.28,72.70944835]
[1755832031196,0.06,183.29,183.28,67.83774884]
[1755832031495,0.06,183.29,183.28,72.70944835]
[1755832031891,0.06,183.29,183.28,66.55331566]
[1755832032911,0.06,183.29,183.28,61.53945458]
[1755832033486,0.06,183.29,183.28,61.68161615]
[1755832035404,0.06,183.29,183.28,66.55331566]
[1755832036999,0.71,183.29,183.28,61.68161615]
[1755832037379,0.06,183.29,183.28,61.68161615]
[1755832037583,0.06,183.29,183.28,66.55331566]
[1755832037781,0.06,183.29,183.28,61.68161615]
[1755832037979,0.75,183.29,183.28,66.55331566]
[1755832038178,0.75,183.29,183.28,72.00944835]
[1755832038379,0.06,183.29,183.28,72.00944835]
[1755832039187,0.06,183.29,183.28,66.55331566]
[1755832039599,0.06,183.29,183.28,19.50161615]
[1755832039803,0.06,183.29,183.28,66.53331566]
[1755832040393,0.75,183.29,183.28,61.66161615]
[1755832042086,0.06,183.29,183.28,67.11774884]
[1755832042392,0.06,183.29,183.28,71.98944835]
[1755832042803,0.06,183.29,183.28,66.53331566]
[1755832043191,0.06,183.29,183.28,71.98944835]
[1755832046099,0.06,183.29,183.28,72.70944835]
[1755832051588,1e-08,183.29,183.28,72.70944835]
[1755832052020,1e-08,183.29,183.28,30.54944835]
[1755832052290,1e-08,183.29,183.28,72.70944835]
[1755832054027,1e-08,183.29,183.28,80.60895472]
[1755832055827,1e-08,183.29,183.28,75.73725521]
[1755832055986,1e-08,183.29,183.28,79.60463158]
[1755832056190,0.69000001,183.29,183.28,19.21729301]
[1755832056494,0.69000001,183.29,183.28,66.24899252]
[1755832056691,0.69000001,183.29,183.28,61.37729301]
[1755832056893,0.69000001,183.29,183.28,19.21729301]
[1755832057095,0.69000001,183.29,183.28,61.37729301]
[1755832058403,0.69000001,183.29,183.28,61.66161615]
[1755832059396,1e-08,183.29,183.28,25.67774884]
[1755832059610,1e-08,183.29,183.28,71.96944835]
[1755832060605,1e-08,183.29,183.28,72.68944835]
[1755832060810,1e-08,183.29,183.28,71.96944835]
[1755832061202,1e-08,183.29,183.28,72.68944835]
[1755832062402,1e-08,183.3,183.29,13.87991715]
[1755832062607,1e-08,183.3,183.29,19.47161666]
[1755832064412,0.1,183.31,183.29,19.47161666]
[1755832064413,3.66837396,183.45,183.33,13.87991715]
[1755832064618,0.69,183.37,183.34,47.01169951]
[1755832064822,0.69,183.36,183.34,47.01169951]
[1755832065322,0.69,183.36,183.35,44.75161666]
[1755832065705,0.69,183.36,183.35,49.62331666]
[1755832066427,0.69,183.38,183.37,26.0]
[1755832066613,0.69,183.38,183.37,73.59345476]
[1755832067127,5.56169951,183.38,183.37,42.396578]
[1755832067307,5.56169951,183.38,183.37,84.536578]
[1755832067936,5.56169951,183.38,183.36,26.0]
[1755832068150,4.87169951,183.42,183.36,42.14]
[1755832068151,5.53169951,183.37,183.36,42.14]
[1755832068355,0.66,183.37,183.35,58.539267]
[1755832068649,0.66,183.36,183.35,58.539267]
[1755832069209,5.53169951,183.36,183.35,58.539267]
[1755832074638,5.53169951,183.36,183.35,16.399267]
[1755832074838,5.53169951,183.36,183.35,58.539267]
[1755832075024,0.66,183.36,183.35,58.539267]
[1755832075206,5.53169951,183.36,183.35,58.539267]
[1755832076222,5.53169951,183.36,183.35,63.99331663]
[1755832076223,4.87169951,183.36,183.35,63.99331663]
[1755832076536,0.06,183.38,183.37,26.0]
[1755832076717,0.06,183.38,183.37,73.59345476]
[1755832077243,0.06,183.38,183.37,79.12515476]
[1755832077537,0.06,183.38,183.37,93.00507191]
[1755832078920,0.72,183.38,183.37,73.6717]
[1755832079419,0.72,183.38,183.37,79.12515476]
[1755832079620,0.72,183.38,183.37,73.6717]
[1755832080334,5.59169951,183.38,183.37,31.5317]
[1755832080540,5.59169951,183.38,183.36,42.14]
[1755832080755,5.53169951,183.37,183.36,45.804804]
[1755832081323,0.66,183.37,183.36,45.804804]
[1755832081537,5.53169951,183.37,183.36,45.804804]
[1755832082727,5.53169951,183.37,183.36,51.25855618]
[1755832083432,5.53169951,183.37,183.36,45.804804]
[1755832085119,5.53169951,183.37,183.36,51.25855618]
[1755832085735,5.53169951,183.37,183.36,45.804804]
[1755832087132,5.53169951,183.37,183.36,42.14]
[1755832087333,5.59169951,183.37,183.36,42.14]
[1755832087732,5.59169951,183.37,183.35,5.5317]
[1755832087931,5.53169951,183.36,183.35,42.14]
[1755832088152,5.53169951,183.36,183.33,42.14]
[1755832088358,4.87169951,183.34,183.31,19.05074476]
[1755832088524,5.53169951,183.34,183.32,42.14]
[1755832088729,5.53169951,183.34,183.33,5.591699]
[1755832088932,4.87169951,183.34,183.33,5.591699]
[1755832089366,4.87169951,183.34,183.33,11.04634362]
[1755832090179,4.93169951,183.37,183.33,16.62804313]
[1755832090335,0.06,183.37,183.34,42.85]
[1755832090539,0.06,183.37,183.35,0.71]
[1755832090740,0.06,183.37,183.36,56.01991715]
[1755832091362,0.06,183.37,183.36,67.05536884]
[1755832093440,0.06,183.37,183.36,62.18366933]
[1755832093758,0.06,183.37,183.36,67.05536884]
[1755832094473,0.06,183.37,183.36,62.18366933]
[1755832094661,0.06,183.37,183.36,67.05536884]
[1755832097469,0.06,183.37,183.36,66.34536884]
[1755832097840,0.06,183.37,183.36,67.02536884]
[1755832099772,0.74,183.37,183.36,55.87775558]
[1755832099969,0.06,183.37,183.36,61.47366933]
[1755832100745,0.06,183.37,183.36,56.01991715]
[1755832101075,0.06,183.37,183.36,67.08536833]
[1755832101277,0.74,183.37,183.36,61.63161615]
[1755832102479,0.06,183.37,183.36,67.08536833]
[1755832103357,0.06,183.37,183.36,67.76536833]
[1755832103561,0.06,183.37,183.36,72.63706784]
[1755832103863,0.06,183.37,183.36,67.76536833]
[1755832104179,0.06,183.37,183.36,72.63706784]
[1755832105670,1e-08,183.37,183.36,72.63706784]
[1755832106651,1e-08,183.38,183.37,18.75161666]
[1755832106859,1e-08,183.39,183.37,43.75112303]
[1755832107086,1e-08,183.39,183.38,60.87161666]
[1755832107254,1e-08,183.39,183.38,85.87112303]
[1755832107577,0.68,183.49,183.43,0.28432314]
[1755832107874,0.68,183.49,183.48,26.0]
[1755832108050,0.68,183.49,183.48,68.12]
[1755832108573,0.68,183.49,183.48,72.9917]
[1755832108751,0.68,183.52,183.5,0.28432314]
[1755832108947,0.68,183.52,183.51,42.12]
[1755832111986,0.68,183.54,183.51,42.12]
[1755832112181,0.68,183.53,183.51,42.12]
[1755832112484,0.68,183.53,183.51,46.9917]
[1755832112787,0.1,183.56,183.52,14.55991715]
[1755832112963,0.78,183.56,183.53,42.12]
[1755832113167,0.1,183.56,183.53,42.12]
[1755832113360,0.68,183.55,183.53,42.12]
[1755832113773,0.68,183.55,183.54,4.8717]
[1755832117758,5.55169951,183.55,183.54,42.1]
[1755832118002,0.68,183.55,183.54,42.1]
[1755832118164,5.55169951,183.55,183.52,4.971699]
[1755832118373,4.87169951,183.55,183.53,42.1]
[1755832118690,0.68,183.54,183.53,42.1]
[1755832119056,5.55169951,183.54,183.53,42.1]
[1755832119260,0.68,183.54,183.53,42.1]
[1755832119465,0.68,183.54,183.53,46.9717]
[1755832120083,5.55169951,183.54,183.52,42.1]
[1755832120288,0.68,183.54,183.52,42.1]
[1755832120493,4.87169951,183.53,183.52,42.1]
[1755832121000,5.55169951,183.53,183.51,4.871699]
[1755832121174,5.55169951,183.53,183.52,42.1]
[1755832123872,5.55169951,183.53,183.51,42.1]
[1755832124070,0.68,183.52,183.51,42.1]
[1755832124482,5.55169951,183.52,183.51,42.1]
[1755832124881,4.87169951,183.52,183.51,42.1]
[1755832125288,0.74,183.54,183.51,42.1]
[1755832125496,4.87169951,183.53,183.51,42.78]
[1755832125697,4.87169951,183.52,183.51,42.1]
[1755832126767,5.55169951,183.52,183.51,42.1]
[1755832128782,4.87169951,183.52,183.51,42.1]
[1755832130881,4.87169951,183.53,183.51,47.54929414]
[1755832131405,4.93169951,183.54,183.52,4.871699]
[1755832131592,4.93169951,183.54,183.51,48.25929414]
[1755832131797,5.65169951,183.54,183.51,42.81]
[1755832132100,4.93169951,183.54,183.51,53.19094209]
[1755832132690,4.93169951,183.54,183.51,42.81]
[1755832132875,0.78,183.54,183.51,42.81]
[1755832133080,5.65169951,183.54,183.51,47.7417]